fUSD/lending_fUSD_20250202
["ID","MTS","AMOUNT","RATE_DAILY","PERIOD"]
[351323311,1738514838403,-500.0,0.00011231,2]
[351323312,1738514838427,-500.0,0.00011231,2]
[351323313,1738514838450,-500.0,0.00011231,2]
[351323314,1738514838472,-545.92,0.00011231,2]
[351323315,1738514838494,-1448.21,0.00011231,2]
[351323316,1738514838517,-500.0,0.00011231,2]
[351323317,1738514838539,-500.0,0.00011231,2]
[351323318,1738514838563,-1362.83,0.00011231,2]
[351323319,1738514838591,-500.0,0.00011231,2]
[351323320,1738514838616,-536.25,0.00011231,2]
[351323321,1738514838640,-500.0,0.00011231,2]
[351323322,1738514838666,-500.0,0.00011231,2]
[351323323,1738514838689,-1091.9,0.00011231,2]
[351323324,1738514838712,-500.0,0.00011231,2]
[351323325,1738514838738,-486.99,0.00011231,2]
[351323326,1738514838764,-500.0,0.00011231,2]
[351323327,1738514838790,-716.55,0.00011231,2]
[351323328,1738514838814,-500.0,0.00011231,2]
[351323329,1738514838837,-504.24,0.00011231,2]
[351323330,1738514838860,-726.28,0.00011231,2]
[351323331,1738514838888,-500.0,0.00011231,2]
[351323332,1738514838912,-799.94,0.00011231,2]
[351323333,1738514838936,-500.0,0.00011231,2]
[351323334,1738514838962,-500.0,0.00011231,2]
[351323335,1738514838986,-500.0,0.00011231,2]
[351323336,1738514839009,-996.21,0.00011231,2]
[351323337,1738514839031,-500.0,0.00011231,2]
[351323338,1738514839055,-700.15,0.00011231,2]
[351323339,1738514839080,-500.0,0.00011231,2]
[351323340,1738514839104,-500.0,0.00011231,2]
[351323341,1738514839133,-500.0,0.00011231,2]
[351323342,1738514839158,-500.0,0.00011231,2]
[351323343,1738514839180,-500.0,0.00011231,2]
[351323344,1738514839203,-500.0,0.00011231,2]
[351323345,1738514839226,-500.0,0.00011231,2]
[351323346,1738514839250,-525.87,0.00011231,2]
[351323347,1738514839274,-647.43,0.00011231,2]
[351323348,1738514839298,-973.41,0.00011231,2]
[351323349,1738514839322,-500.0,0.00011231,2]
[351323350,1738514839344,-971.54,0.00011231,2]
[351323351,1738514839366,-532.71,0.00011231,2]
[351323352,1738514839394,-1238.41,0.00011231,2]
[351323353,1738514839418,-500.0,0.00011231,2]
[351323354,1738514839443,-500.0,0.00011231,2]
[351323355,1738514839465,-500.0,0.00011231,2]
[351323356,1738514839490,-1558.22,0.00011231,2]
[351323357,1738514839514,-617.8,0.00011231,2]
[351323358,1738514839537,-500.0,0.00011231,2]
[351323359,1738514839559,-500.0,0.00011231,2]
[351323360,1738514839586,-500.0,0.00011231,2]
[351323361,1738514839608,-500.0,0.00011231,2]
[351323362,1738514839634,-500.0,0.00011231,2]
[351323363,1738514839656,-500.0,0.00011231,2]
[351323364,1738514839680,-500.0,0.00011231,2]
[351323365,1738514839702,-578.48,0.00011231,2]
[351323366,1738514839726,-529.52,0.00011231,2]
[351323367,1738514839751,-500.0,0.00011231,2]
[351323368,1738514839788,-500.0,0.00011231,2]
[351323369,1738514839816,-569.44,0.00011231,2]
[351323370,1738514839841,-500.0,0.00011231,2]
[351323371,1738514839867,-500.0,0.00011231,2]
[351323372,1738514839898,-252.0879415,0.00011231,2]
[351323373,1738514840857,-500.0,0.00011094,2]
[351323374,1738514840884,-247.9120585,0.00011231,2]
[351323375,1738514840908,-500.0,0.00011231,2]
[351323376,1738514840932,-500.0,0.00011231,2]
[351323377,1738514840957,-1078.36,0.00011231,2]
[351323378,1738514840980,-500.0,0.00011231,2]
[351323379,1738514841004,-500.0,0.00011231,2]
[351323380,1738514841027,-500.0,0.00011231,2]
[351323381,1738514841053,-7018.59,0.00011231,2]
[351323382,1738514841076,-500.0,0.00011231,2]
[351323383,1738514841099,-500.0,0.00011231,2]
[351323384,1738514841123,-500.0,0.00011231,2]
[351323385,1738514841152,-550.25,0.00011231,2]
[351323386,1738514841177,-500.0,0.00011231,2]
[351323387,1738514841203,-500.0,0.00011231,2]
[351323388,1738514841228,-496.72,0.00011231,2]
[351323389,1738514841252,-500.0,0.00011231,2]
[351323390,1738514841278,-500.0,0.00011231,2]
[351323391,1738514841303,-500.0,0.00011231,2]
[351323392,1738514841329,-1007.18,0.00011231,2]
[351323393,1738514841354,-1588.93,0.00011231,2]
[351323394,1738514841382,-500.0,0.00011231,2]
[351323395,1738514841407,-626.12,0.00011231,2]
[351323396,1738514841431,-500.0,0.00011231,2]
[351323397,1738514841456,-500.0,0.00011231,2]
[351323398,1738514841481,-500.0,0.00011231,2]
[351323399,1738514841503,-500.0,0.00011231,2]
[351323400,1738514841525,-500.0,0.00011231,2]
[351323401,1738514841546,-500.0,0.00011231,2]
[351323402,1738514841570,-1081.13,0.00011231,2]
[351323403,1738514841593,-500.0,0.00011231,2]
[351323404,1738514841616,-500.0,0.00011231,2]
[351323405,1738514841640,-156.878285,0.00011231,2]
[351323406,1738514841661,-500.0,0.00011231,2]
[351323407,1738514841681,-500.0,0.00011231,2]
[351323408,1738514841701,-500.0,0.00011231,2]
[351323409,1738514841722,-535.67,0.00011231,2]
[351323410,1738514841743,-694.62,0.00011231,2]
[351323411,1738514841764,-500.0,0.00011231,2]
[351323412,1738514841785,-500.0,0.00011231,2]
[351323413,1738514841807,-500.0,0.00011231,2]
[351323414,1738514841829,-156.135877,0.00011231,2]
[351323415,1738514842186,-500.0,0.00011231,2]
[351323416,1738514842238,-938.8,0.00011231,2]
[351323417,1738514842261,-628.13,0.00011231,2]
[351323418,1738514842282,-500.0,0.00011231,2]
[351323419,1738514842305,-536.82,0.00011231,2]
[351323420,1738514842328,-500.0,0.00011231,2]
[351323421,1738514842353,-539.79635306,0.00011232,2]
[351323422,1738514842375,-500.0,0.00011232,2]
[351323423,1738514842398,-500.0,0.00011232,2]
[351323424,1738514842419,-500.0,0.00011232,2]
[351323425,1738514842439,-500.0,0.00011232,2]
[351323426,1738514842459,-500.0,0.00011232,2]
[351323427,1738514842479,-500.0,0.00011232,2]
[351323428,1738514842500,-500.0,0.00011232,2]
[351323429,1738514842522,-500.0,0.00011232,2]
[351323430,1738514842542,-203.48,0.00011232,2]
[351323431,1738514842567,-500.0,0.00011232,2]
[351323432,1738514842592,-500.0,0.00011232,2]
[351323433,1738514842612,-418.79487209,0.00011232,2]
[351323434,1738514842637,-604.3,0.00011232,2]
[351323435,1738514842658,-500.0,0.00011232,2]
[351323436,1738514842678,-500.0,0.00011232,2]
[351323437,1738514842699,-500.0,0.00011232,2]
[351323438,1738514842720,-500.0,0.00011232,2]
[351323439,1738514842740,-500.0,0.00011232,2]
[351323440,1738514842760,-500.0,0.00011232,2]
[351323441,1738514842781,-592.69,0.00011232,2]
[351323442,1738514842801,-500.0,0.00011232,2]
[351323443,1738514842821,-208.6883645,0.00011232,2]
[351323444,1738514842841,-196.778408,0.00011232,2]
[351323445,1738514842861,-200.75727766,0.00011232,2]
[351323446,1738514843200,-500.0,0.00011094,2]
[351323447,1738514843221,-500.0,0.00011094,2]
[351323448,1738514843243,-500.0,0.00011231,2]
[351323449,1738514843265,-500.0,0.00011231,2]
[351323450,1738514843297,-299.24272234,0.00011232,2]
[351323451,1738514843323,-500.0,0.00011232,2]
[351323452,1738514843346,-381.13237906,0.00011232,2]
[351323453,1738514843368,-500.0,0.00011232,2]
[351323454,1738514843392,-500.0,0.00011232,2]
[351323455,1738514843414,-771.67,0.00011232,2]
[351323456,1738514843436,-500.0,0.00011232,2]
[351323457,1738514843459,-567.42841333,0.00011232,2]
[351323458,1738514843487,-500.0,0.00011232,2]
[351323459,1738514843511,-500.0,0.00011232,2]
[351323460,1738514843534,-500.0,0.00011232,2]
[351323461,1738514843555,-500.0,0.00011232,2]
[351323462,1738514843580,-500.0,0.00011232,2]
[351323463,1738514843601,-500.0,0.00011232,2]
[351323464,1738514843625,-500.0,0.00011232,2]
[351323465,1738514843650,-500.0,0.00011232,2]
[351323466,1738514843675,-175.02294067,0.00011232,2]
[351323467,1738514843698,-500.0,0.00011232,2]
[351323468,1738514843720,-500.0,0.00011232,2]
[351323469,1738514843743,-500.0,0.00011232,2]
[351323470,1738514843765,-500.0,0.00011232,2]
[351323471,1738514843787,-500.0,0.00011232,2]
[351323472,1738514843809,-500.0,0.00011232,2]
[351323473,1738514843831,-500.0,0.00011232,2]
[351323474,1738514843856,-500.0,0.00011232,2]
[351323475,1738514843877,-500.0,0.00011232,2]
[351323476,1738514843902,-500.0,0.00011232,2]
[351323477,1738514843924,-500.0,0.00011232,2]
[351323478,1738514843946,-500.0,0.00011232,2]
[351323479,1738514843968,-178.68798874,0.00011232,2]
[351323480,1738514843989,-500.0,0.00011232,2]
[351323481,1738514844011,-628.26968931,0.00011232,2]
[351323482,1738514844032,-500.0,0.00011232,2]
[351323483,1738514844053,-500.0,0.00011232,2]
[351323484,1738514844073,-500.0,0.00011232,2]
[351323485,1738514844094,-500.0,0.00011232,2]
[351323486,1738514844114,-500.0,0.00011232,2]
[351323487,1738514844136,-500.0,0.00011232,2]
[351323488,1738514844157,-500.0,0.00011232,2]
[351323489,1738514844178,-500.0,0.00011232,2]
[351323490,1738514844200,-500.0,0.00011232,2]
[351323491,1738514844221,-500.0,0.00011232,2]
[351323492,1738514844243,-533.82,0.00011232,2]
[351323493,1738514844265,-500.0,0.00011232,2]
[351323494,1738514844286,-500.0,0.00011232,2]
[351323495,1738514844307,-1000.0,0.00011232,2]
[351323496,1738514844329,-500.0,0.00011232,2]
[351323497,1738514844350,-500.0,0.00011232,2]
[351323498,1738514844371,-500.0,0.00011232,2]
[351323499,1738514844395,-500.0,0.00011232,2]
[351323500,1738514844416,-665.72,0.00011232,2]
[351323501,1738514844441,-500.0,0.00011232,2]
[351323502,1738514844462,-500.0,0.00011232,2]
[351323503,1738514844483,-500.0,0.00011232,2]
[351323504,1738514844504,-500.0,0.00011232,2]
[351323505,1738514844525,-500.0,0.00011232,2]
[351323506,1738514844546,-500.0,0.00011232,2]
[351323507,1738514844567,-500.0,0.00011232,2]
[351323508,1738514844591,-500.0,0.00011232,2]
[351323509,1738514844613,-591.01,0.00011232,2]
[351323510,1738514844636,-500.0,0.00011232,2]
[351323511,1738514844658,-536.3,0.00011232,2]
[351323512,1738514844680,-510.71,0.00011232,2]
[351323513,1738514844701,-500.0,0.00011232,2]
[351323514,1738514844721,-500.0,0.00011232,2]
[351323515,1738514844741,-500.0,0.00011232,2]
[351323516,1738514844761,-500.0,0.00011232,2]
[351323517,1738514844782,-500.0,0.00011268,2]
[351323518,1738514844803,-451.14178959,0.00011268,2]
[351323519,1738514844829,-313.61296242,0.00011368,2]
[351323520,1738514844851,-500.0,0.00011368,2]
[351323521,1738514844873,-500.0,0.00011368,2]
[351323522,1738514844896,-500.0,0.00011368,2]
[351323523,1738514844918,-792.32,0.00011368,2]
[351323524,1738514844942,-500.0,0.00011368,2]
[351323525,1738514844965,-500.0,0.00011368,2]
[351323526,1738514844988,-500.0,0.00011368,2]
[351323527,1738514845012,-500.0,0.00011368,2]
[351323528,1738514845036,-500.0,0.00011368,2]
[351323529,1738514845061,-500.0,0.00011368,2]
[351323530,1738514845084,-527.83,0.00011368,2]
[351323531,1738514845107,-500.0,0.00011368,2]
[351323532,1738514845130,-500.0,0.00011368,2]
[351323533,1738514845160,-500.0,0.00011368,2]
[351323534,1738514845183,-500.0,0.00011368,2]
[351323535,1738514845207,-500.0,0.00011368,2]
[351323536,1738514845229,-500.0,0.00011368,2]
[351323537,1738514845251,-500.0,0.00011368,2]
[351323538,1738514845273,-500.0,0.00011368,2]
[351323539,1738514845294,-891.06,0.00011368,2]
[351323540,1738514845315,-500.0,0.00011368,2]
[351323541,1738514845338,-622.16,0.00011368,2]
[351323542,1738514845361,-728.24,0.00011368,2]
[351323543,1738514845383,-500.0,0.00011368,2]
[351323544,1738514845410,-500.0,0.00011368,2]
[351323545,1738514845434,-814.53,0.00011368,2]
[351323546,1738514845457,-1128.63,0.00011368,2]
[351323547,1738514845480,-601.92,0.00011368,2]
[351323548,1738514845503,-500.0,0.00011368,2]
[351323549,1738514845527,-1959.3,0.00011368,2]
[351323550,1738514845549,-1101.14,0.00011368,2]
[351323551,1738514845575,-500.0,0.00011368,2]
[351323552,1738514845598,-500.0,0.00011368,2]
[351323553,1738514845846,-500.0,0.00011368,2]
[351323554,1738514845871,-500.0,0.00011368,2]
[351323555,1738514845898,-500.0,0.00011368,2]
[351323556,1738514845922,-500.0,0.00011368,2]
[351323557,1738514845944,-1448.21,0.00011368,2]
[351323558,1738514845967,-430.58,0.00011368,2]
[351323559,1738514845990,-500.0,0.00011368,2]
[351323560,1738514846015,-1362.83,0.00011368,2]
[351323561,1738514846038,-500.0,0.00011368,2]
[351323562,1738514846062,-536.25,0.00011368,2]
[351323563,1738514846085,-500.0,0.00011368,2]
[351323564,1738514846109,-1091.9,0.00011368,2]
[351323565,1738514846131,-500.0,0.00011368,2]
[351323566,1738514846159,-500.0,0.00011368,2]
[351323567,1738514846183,-716.55,0.00011368,2]
[351323568,1738514846208,-500.0,0.00011368,2]
[351323569,1738514846231,-504.24,0.00011368,2]
[351323570,1738514846255,-726.28,0.00011368,2]
[351323571,1738514846279,-500.0,0.00011368,2]
[351323572,1738514846302,-799.94,0.00011368,2]
[351323573,1738514846325,-500.0,0.00011368,2]
[351323574,1738514846349,-500.0,0.00011368,2]
[351323575,1738514846373,-500.0,0.00011368,2]
[351323576,1738514846400,-996.21,0.00011368,2]
[351323577,1738514846422,-500.0,0.00011368,2]
[351323578,1738514846445,-700.15,0.00011368,2]
[351323579,1738514846466,-500.0,0.00011368,2]
[351323580,1738514846489,-414.43401131,0.00011368,2]
[351323581,1738514846513,-500.0,0.00011368,2]
[351323582,1738514846535,-500.0,0.00011368,2]
[351323583,1738514846557,-500.0,0.00011368,2]
[351323584,1738514846582,-500.0,0.00011368,2]
[351323585,1738514846607,-500.0,0.00011368,2]
[351323586,1738514846630,-525.87,0.00011368,2]
[351323587,1738514846655,-647.43,0.00011368,2]
[351323588,1738514846679,-973.41,0.00011368,2]
[351323589,1738514846703,-500.0,0.00011368,2]
[351323590,1738514846724,-971.54,0.00011368,2]
[351323591,1738514846746,-532.71,0.00011368,2]
[351323592,1738514846768,-1238.41,0.00011368,2]
[351323593,1738514846789,-500.0,0.00011368,2]
[351323594,1738514846811,-500.0,0.00011368,2]
[351323595,1738514846832,-500.0,0.00011368,2]
[351323596,1738514846855,-1558.22,0.00011368,2]
[351323597,1738514846876,-617.8,0.00011368,2]
[351323598,1738514846899,-291.81764251,0.00011368,2]
[351323599,1738514846920,-500.0,0.00011368,2]
[351323600,1738514846942,-500.0,0.00011368,2]
[351323601,1738514846963,-500.0,0.00011368,2]
[351323602,1738514846984,-500.0,0.00011368,2]
[351323603,1738514847007,-500.0,0.00011368,2]
[351323604,1738514847032,-500.0,0.00011368,2]
[351323605,1738514847052,-500.0,0.00011368,2]
[351323606,1738514847074,-578.48,0.00011368,2]
[351323607,1738514847096,-529.52,0.00011368,2]
[351323608,1738514847117,-500.0,0.00011368,2]
[351323609,1738514847143,-500.0,0.00011368,2]
[351323610,1738514847163,-500.0,0.00011368,2]
[351323611,1738514847184,-613.99,0.00011368,2]
[351323612,1738514847208,-500.0,0.00011368,2]
[351323613,1738514847229,-575.93,0.00011368,2]
[351323614,1738514847250,-500.0,0.00011368,2]
[351323615,1738514847277,-1078.36,0.00011368,2]
[351323616,1738514847299,-500.0,0.00011368,2]
[351323617,1738514847322,-500.0,0.00011368,2]
[351323618,1738514847343,-588.48,0.00011368,2]
[351323619,1738514847365,-7018.59,0.00011368,2]
[351323620,1738514847396,-500.0,0.00011368,2]
[351323621,1738514847417,-500.0,0.00011368,2]
[351323622,1738514847438,-500.0,0.00011368,2]
[351323623,1738514847460,-550.25,0.00011368,2]
[351323624,1738514847481,-500.0,0.00011368,2]
[351323625,1738514847504,-500.0,0.00011368,2]
[351323626,1738514847526,-500.0,0.00011368,2]
[351323627,1738514847548,-500.0,0.00011368,2]
[351323628,1738514847571,-500.0,0.00011368,2]
[351323629,1738514847599,-1007.18,0.00011368,2]
[351323630,1738514847623,-1588.93,0.00011368,2]
[351323631,1738514847653,-500.0,0.00011368,2]
[351323632,1738514847679,-626.12,0.00011368,2]
[351323633,1738514847702,-500.0,0.00011368,2]
[351323634,1738514847726,-500.0,0.00011368,2]
[351323635,1738514847749,-500.0,0.00011368,2]
[351323636,1738514847771,-500.0,0.00011368,2]
[351323637,1738514847794,-1081.13,0.00011368,2]
[351323638,1738514847816,-500.0,0.00011368,2]
[351323639,1738514847839,-500.0,0.00011368,2]
[351323640,1738514847861,-500.0,0.00011368,2]
[351323641,1738514847883,-156.878285,0.00011368,2]
[351323642,1738514847909,-500.0,0.00011368,2]
[351323643,1738514847931,-500.0,0.00011368,2]
[351323644,1738514847953,-535.67,0.00011368,2]
[351323645,1738514847975,-694.62,0.00011368,2]
[351323646,1738514847997,-279.97,0.00011368,2]
[351323647,1738514848020,-500.0,0.00011368,2]
[351323648,1738514848042,-500.0,0.00011368,2]
[351323649,1738514848064,-156.135877,0.00011368,2]
[351323650,1738514848086,-500.0,0.00011368,2]
[351323651,1738514848108,-938.8,0.00011368,2]
[351323652,1738514848130,-628.13,0.00011368,2]
[351323653,1738514848155,-500.0,0.00011368,2]
[351323654,1738514848177,-536.82,0.00011368,2]
[351323655,1738514848201,-323.51,0.00011368,2]
[351323656,1738514848223,-500.0,0.00011368,2]
[351323657,1738514848243,-500.0,0.00011368,2]
[351323658,1738514848265,-500.0,0.00011369,2]
[351323659,1738514848289,-500.0,0.00011369,2]
[351323660,1738514848311,-500.0,0.00011369,2]
[351323661,1738514848334,-500.0,0.00011369,2]
[351323662,1738514848400,-500.0,0.00011369,2]
[351323663,1738514848422,-604.3,0.00011369,2]
[351323664,1738514848444,-500.0,0.00011369,2]
[351323665,1738514848465,-500.0,0.00011369,2]
[351323666,1738514848488,-500.0,0.00011369,2]
[351323667,1738514848510,-500.0,0.00011369,2]
[351323668,1738514848531,-500.0,0.00011369,2]
[351323669,1738514848552,-500.0,0.00011369,2]
[351323670,1738514848577,-500.0,0.00011369,2]
[351323671,1738514848598,-500.0,0.00011369,2]
[351323672,1738514848619,-245.56790684,0.00011369,2]
[351323673,1738514848643,-500.0,0.00011369,2]
[351323674,1738514848667,-500.0,0.00011369,2]
[351323675,1738514848687,-771.67,0.00011369,2]
[351323676,1738514848707,-500.0,0.00011369,2]
[351323677,1738514848729,-500.0,0.00011369,2]
[351323678,1738514848750,-500.0,0.00011369,2]
[351323679,1738514848770,-500.0,0.00011369,2]
[351323680,1738514848791,-500.0,0.00011369,2]
[351323681,1738514848812,-500.0,0.00011369,2]
[351323682,1738514848832,-500.0,0.00011369,2]
[351323683,1738514848852,-500.0,0.00011369,2]
[351323684,1738514848873,-500.0,0.00011369,2]
[351323685,1738514848896,-183.79,0.00011369,2]
[351323686,1738514848917,-531.24478313,0.00011369,2]
[351323687,1738514848938,-500.0,0.00011369,2]
[351323688,1738514848958,-500.0,0.00011369,2]
[351323689,1738514848978,-500.0,0.00011369,2]
[351323690,1738514848998,-500.0,0.00011369,2]
[351323691,1738514849019,-500.0,0.00011369,2]
[351323692,1738514849043,-509.35325512,0.00011369,2]
[351323693,1738514849063,-500.0,0.00011369,2]
[351323694,1738514849086,-500.0,0.00011369,2]
[351323695,1738514849107,-500.0,0.00011369,2]
[351323696,1738514849128,-500.0,0.00011369,2]
[351323697,1738514849152,-500.0,0.00011369,2]
[351323698,1738514849172,-216.87900871,0.00011369,2]
[351323699,1738514849192,-500.0,0.00011369,2]
[351323700,1738514849212,-500.0,0.00011369,2]
[351323701,1738514849232,-500.0,0.00011369,2]
[351323702,1738514849252,-339.63374911,0.00011369,2]
[351323703,1738514849273,-500.0,0.00011369,2]
[351323704,1738514849294,-500.0,0.00011369,2]
[351323705,1738514849315,-500.0,0.00011369,2]
[351323706,1738514849336,-500.0,0.00011369,2]
[351323707,1738514849358,-500.0,0.00011369,2]
[351323708,1738514849382,-533.82,0.00011369,2]
[351323709,1738514849407,-173.12,0.00011369,2]
[351323710,1738514849427,-500.0,0.00011369,2]
[351323711,1738514849448,-686.78,0.00011369,2]
[351323712,1738514849469,-500.0,0.00011369,2]
[351323713,1738514849489,-500.0,0.00011369,2]
[351323714,1738514849510,-215.82,0.00011369,2]
[351323715,1738514849532,-500.0,0.00011369,2]
[351323716,1738514849553,-665.72,0.00011369,2]
[351323717,1738514849576,-500.0,0.00011369,2]
[351323718,1738514849602,-500.0,0.00011369,2]
[351323719,1738514849627,-500.0,0.00011369,2]
[351323720,1738514849654,-500.0,0.00011369,2]
[351323721,1738514849682,-500.0,0.00011369,2]
[351323722,1738514849705,-500.0,0.00011369,2]
[351323723,1738514849727,-293.88577074,0.00011369,2]
[351323724,1738514849750,-500.0,0.00011369,2]
[351323725,1738514849771,-591.01,0.00011369,2]
[351323726,1738514849793,-500.0,0.00011369,2]
[351323727,1738514849815,-536.3,0.00011369,2]
[351323728,1738514849838,-510.71,0.00011369,2]
[351323729,1738514849860,-619.94491568,0.00011369,2]
[351323730,1738514849882,-500.0,0.00011369,2]
[351323731,1738514849912,-500.0,0.00011369,2]
[351323732,1738514849933,-500.0,0.00011369,2]
[351323733,1738514849954,-500.0,0.00011505,2]
[351323734,1738514849976,-500.0,0.00011505,2]
[351323735,1738514849997,-500.0,0.00011505,2]
[351323736,1738514850020,-792.32,0.00011505,2]
[351323737,1738514850042,-500.0,0.00011505,2]
[351323738,1738514850064,-500.0,0.00011505,2]
[351323739,1738514850085,-500.0,0.00011505,2]
[351323740,1738514850107,-500.0,0.00011505,2]
[351323741,1738514850128,-500.0,0.00011505,2]
[351323742,1738514850151,-228.77,0.00011505,2]
[351323743,1738514850172,-527.83,0.00011505,2]
[351323744,1738514850193,-500.0,0.00011505,2]
[351323745,1738514850215,-500.0,0.00011505,2]
[351323746,1738514850235,-500.0,0.00011505,2]
[351323747,1738514850256,-500.0,0.00011505,2]
[351323748,1738514850278,-457.19,0.00011505,2]
[351323749,1738514850299,-500.0,0.00011505,2]
[351323750,1738514850320,-500.0,0.00011505,2]
[351323751,1738514850343,-500.0,0.00011505,2]
[351323752,1738514850365,-891.06,0.00011505,2]
[351323753,1738514850392,-500.0,0.00011505,2]
[351323754,1738514850414,-728.24,0.00011505,2]
[351323755,1738514850436,-500.0,0.00011505,2]
[351323756,1738514850458,-500.0,0.00011505,2]
[351323757,1738514850482,-814.53,0.00011505,2]
[351323758,1738514850505,-1128.63,0.00011505,2]
[351323759,1738514850528,-500.0,0.00011505,2]
[351323760,1738514850549,-1959.3,0.00011505,2]
[351323761,1738514850572,-1101.14,0.00011505,2]
[351323762,1738514850596,-500.0,0.00011505,2]
[351323763,1738514850619,-500.0,0.00011505,2]
[351323764,1738514850643,-500.0,0.00011505,2]
[351323765,1738514850667,-500.0,0.00011505,2]
[351323766,1738514850690,-500.0,0.00011505,2]
[351323767,1738514850713,-500.0,0.00011505,2]
[351323768,1738514850736,-1448.21,0.00011505,2]
[351323769,1738514850757,-500.0,0.00011505,2]
[351323770,1738514850780,-1362.83,0.00011505,2]
[351323771,1738514850802,-500.0,0.00011505,2]
[351323772,1738514850824,-536.25,0.00011505,2]
[351323773,1738514850848,-500.0,0.00011505,2]
[351323774,1738514850870,-1091.9,0.00011505,2]
[351323775,1738514850895,-500.0,0.00011505,2]
[351323776,1738514850921,-500.0,0.00011505,2]
[351323777,1738514850944,-716.55,0.00011505,2]
[351323778,1738514850965,-500.0,0.00011505,2]
[351323779,1738514850987,-504.24,0.00011505,2]
[351323780,1738514851010,-726.28,0.00011505,2]
[351323781,1738514851034,-500.0,0.00011505,2]
[351323782,1738514851056,-799.94,0.00011505,2]
[351323783,1738514851080,-500.0,0.00011505,2]
[351323784,1738514851103,-500.0,0.00011505,2]
[351323785,1738514851127,-500.0,0.00011505,2]
[351323786,1738514851152,-996.21,0.00011505,2]
[351323787,1738514851173,-500.0,0.00011505,2]
[351323788,1738514851196,-700.15,0.00011505,2]
[351323789,1738514851218,-500.0,0.00011505,2]
[351323790,1738514851239,-500.0,0.00011505,2]
[351323791,1738514851261,-500.0,0.00011505,2]
[351323792,1738514851283,-500.0,0.00011505,2]
[351323793,1738514851304,-500.0,0.00011505,2]
[351323794,1738514851325,-215.38,0.00011505,2]
[351323795,1738514851347,-525.87,0.00011505,2]
[351323796,1738514851368,-647.43,0.00011505,2]
[351323797,1738514851393,-973.41,0.00011505,2]
[351323798,1738514851417,-500.0,0.00011505,2]
[351323799,1738514851438,-971.54,0.00011505,2]
[351323800,1738514851461,-532.71,0.00011505,2]
[351323801,1738514851484,-1238.41,0.00011505,2]
[351323802,1738514851506,-500.0,0.00011505,2]
[351323803,1738514851528,-500.0,0.00011505,2]
[351323804,1738514851550,-500.0,0.00011505,2]
[351323805,1738514851573,-1558.22,0.00011505,2]
[351323806,1738514851599,-617.8,0.00011505,2]
[351323807,1738514851622,-500.0,0.00011505,2]
[351323808,1738514851649,-430.71,0.00011505,2]
[351323809,1738514851671,-500.0,0.00011505,2]
[351323810,1738514851694,-500.0,0.00011505,2]